2CCN - Level 2 Cost Centre Name,,9CCN - Level 9 Cost Centre Name,9CCC - Level 9 Cost Centre Code,9AN - Level 9 Account Name,9AC - Level 9 Account Code,Date posted,Date of transaction,Merchant Name,Merchant City,Merchant State,Merchant Zip Code,Originating Account Name,Originating Account Number,MCC/SIC Code,MCC Description,Original Amount,Currency,Conversion Rate,Billed Amount,Debit Credit,Reference Number,Statement Cycle,Account Name
Gloucester City Council,23UE,Museum of Gloucester,MU002,General Supplies/Materials,3025,04/12/2017,30/11/2017,POUNDLAND LTD 1167,GLOUCESTER,,GL11XH,REDACTED,556*********2362,5310,DISCOUNT STORES,6,Pound Sterling (826),1.000000000,6,Debit,85481477335002047992962,02/01/2018,GLOUCESTER CC
Gloucester City Council,23UE,Museum of Gloucester,MU002,General Supplies/Materials,3025,04/12/2017,03/12/2017,Amazon UK Marketplace,800-279-6620,LUX,L2338,REDACTED,556*********2362,5942,BOOK STORES,24.15,Pound Sterling (826),1.000000000,24.15,Debit,55204727337200945743678,02/01/2018,GLOUCESTER CC
Gloucester City Council,23UE,Museum of Gloucester,MU002,Catering Provisions,3103,04/12/2017,02/12/2017,ASDA SUPERSTORE,GLOUCESTER,GBR,GL1 1DS,REDACTED,556*********2362,5411,"GROCERY STORES, SUPERMARKETS",8.96,Pound Sterling (826),1.000000000,8.96,Debit,15377757337000733594529,02/01/2018,GLOUCESTER CC
Gloucester City Council,23UE,Museum of Gloucester,MU002,General Supplies/Materials,3025,04/12/2017,03/12/2017,Amazon UK Marketplace,800-279-6620,LUX,L2338,REDACTED,556*********2362,5942,BOOK STORES,23.96,Pound Sterling (826),1.000000000,23.96,Debit,55204727337200021088881,02/01/2018,GLOUCESTER CC
Gloucester City Council,23UE,Museum of Gloucester,MU002,General Supplies/Materials,3025,04/12/2017,02/12/2017,AMAZON.CO.UK,AMAZON.CO.UK,LUX,,REDACTED,556*********2362,5942,BOOK STORES,6.83,Pound Sterling (826),1.000000000,6.83,Debit,85389247337748530875795,02/01/2018,GLOUCESTER CC
Gloucester City Council,23UE,Museum of Gloucester,MU002,General Supplies/Materials,3025,06/12/2017,05/12/2017,B & Q 1179,GLOUCESTER,,GL12SG,REDACTED,556*********2362,5211,LUMBER AND BUILDING MATERIALS STORES,79.2,Pound Sterling (826),1.000000000,79.2,Debit,85481477340003239333117,02/01/2018,GLOUCESTER CC
Gloucester City Council,23UE,Gloucester Life Museum,MU005,Catering Provisions,3103,11/12/2017,08/12/2017,ASDA SUPERSTORE,GLOUCESTER,GBR,GL1 1DS,REDACTED,556*********2362,5411,"GROCERY STORES, SUPERMARKETS",15.36,Pound Sterling (826),1.000000000,15.36,Debit,45377757343050244774853,02/01/2018,GLOUCESTER CC
Gloucester City Council,23UE,Museum of Gloucester,MU002,General Supplies/Materials,3025,18/12/2017,16/12/2017,ICELAND,GLOUCESTER,GBR,GL1 1SA,REDACTED,556*********2362,5411,"GROCERY STORES, SUPERMARKETS",8.75,Pound Sterling (826),1.000000000,8.75,Debit,95377757351000571892558,02/01/2018,GLOUCESTER CC
Gloucester City Council,23UE,Museum of Gloucester,MU002,General Supplies/Materials,3025,18/12/2017,16/12/2017,AMAZON SVCS EU-UK AMAZ,AMAZON.CO.UK,LUX,,REDACTED,556*********2362,5942,BOOK STORES,46.68,Pound Sterling (826),1.000000000,46.68,Debit,85389247350749807408304,02/01/2018,GLOUCESTER CC
Gloucester City Council,23UE,Museum of Gloucester,MU002,General Supplies/Materials,3025,21/12/2017,21/12/2017,Amazon UK Marketplace,800-279-6620,LUX,L2338,REDACTED,556*********2362,5942,BOOK STORES,20.59,Pound Sterling (826),1.000000000,20.59,Debit,55204727355200576991965,02/01/2018,GLOUCESTER CC
Gloucester City Council,23UE,Managing Director & Directors,MT001,Public Transport - Staff,2402,26/12/2017,22/12/2017,Trainline,London,GBR,1445,REDACTED,556*********1418,4112,PASSENGER RAILWAYS,85.07,Pound Sterling (826),1.000000000,85.07,Debit,85130087356750833201164,02/01/2018,GLOUCESTER CC
Gloucester City Council,23UE,Countryside Unit,EP003,Vehicle Repairs and Maintenance,2103,07/12/2017,06/12/2017,ALLFLEX UK GROUP L,STANLEY,GBR,DH9 7YA,REDACTED,556*********6734,5965,COMBINATION CATALOG AND RETAIL MERCHANT,4.2,Pound Sterling (826),1.000000000,4.2,Debit,25425157341030169864052,02/01/2018,GLOUCESTER CC
Gloucester City Council,23UE,Countryside Unit,EP003,General Supplies/Materials,3025,13/12/2017,12/12/2017,COUNTRYWIDEFARMERS PLC,GLOUCESTER,,GL1 2RR,REDACTED,556*********6734,0763,AGRICULTURAL COOPERATIVES,38.57,Pound Sterling (826),1.000000000,38.57,Debit,55504437346071255705652,02/01/2018,GLOUCESTER CC
Gloucester City Council,23UE,Countryside Unit,EP003,Vehicle Repairs and Maintenance,2103,15/12/2017,14/12/2017,HALFORDS 0749,GLOUCESTER,GBR,GL4 3EA,REDACTED,556*********6734,5940,BICYCLE SHOPS-SALES AND SERVICE,7.49,Pound Sterling (826),1.000000000,7.49,Debit,35377757349090242932009,02/01/2018,GLOUCESTER CC
Gloucester City Council,23UE,Guildhall Bar & Caf�,GH005,Catering Provisions,3103,04/12/2017,01/12/2017,TESCO STORES 6819,GLOUCESTER,GBR,GL1 1TP,REDACTED,556*********1155,5411,"GROCERY STORES, SUPERMARKETS",2.69,Pound Sterling (826),1.000000000,2.69,Debit,55377757336000425335147,02/01/2018,GLOUCESTER CC
Gloucester City Council,23UE,Blackfriars ,GH010,Catering Provisions,3103,04/12/2017,03/12/2017,SAINSBURYS 0608,BARNWOOD,GBR,GL4 3RT,REDACTED,556*********1155,5411,"GROCERY STORES, SUPERMARKETS",43,Pound Sterling (826),1.000000000,43,Debit,65425157338001014102791,02/01/2018,GLOUCESTER CC
Gloucester City Council,23UE,Blackfriars ,GH010,Catering Provisions,3103,04/12/2017,03/12/2017,BOOKER LIMITED GLOUCES,GLOUCESTER,GBR,GL4 3RT,REDACTED,556*********1155,5811,CATERERS,25.43,Pound Sterling (826),1.000000000,25.43,Debit,55184227337893380190507,02/01/2018,GLOUCESTER CC
Gloucester City Council,23UE,Guildhall Bar & Caf�,GH005,Catering Provisions,3103,05/12/2017,04/12/2017,B&M RETAIL LTD,HS GLOUCESTER,,GL12DH,REDACTED,556*********1155,5310,DISCOUNT STORES,25.98,Pound Sterling (826),1.000000000,25.98,Debit,85481477339003132978714,02/01/2018,GLOUCESTER CC
Gloucester City Council,23UE,Museum of Gloucester Catering,MU004,Catering Provisions,3103,14/12/2017,13/12/2017,SAINSBURYS SACAT 0771,GLOUCESTER,GBR,GL1 2AG,REDACTED,556*********1155,5411,"GROCERY STORES, SUPERMARKETS",5.8,Pound Sterling (826),1.000000000,5.8,Debit,25425157348080115641800,02/01/2018,GLOUCESTER CC
Gloucester City Council,23UE,Museum of Gloucester Catering,MU004,Catering Provisions,3103,14/12/2017,13/12/2017,ASDA SUPERSTORE,GLOUCESTER,GBR,GL1 1DS,REDACTED,556*********1155,5411,"GROCERY STORES, SUPERMARKETS",90.23,Pound Sterling (826),1.000000000,90.23,Debit,45377757348080267679213,02/01/2018,GLOUCESTER CC
Gloucester City Council,23UE,Museum of Gloucester Catering,MU004,Catering Provisions,3103,18/12/2017,15/12/2017,SAINSBURYS SACAT 0771,GLOUCESTER,GBR,GL1 2AG,REDACTED,556*********1155,5411,"GROCERY STORES, SUPERMARKETS",10.1,Pound Sterling (826),1.000000000,10.1,Debit,25425157350000124995547,02/01/2018,GLOUCESTER CC
Gloucester City Council,23UE,Guildhall Bar & Caf�,GH005,Catering Provisions,3103,19/12/2017,18/12/2017,POUNDWORLD RETAIL,GLOUCESTER,,GL1 1PA,REDACTED,556*********1155,5310,DISCOUNT STORES,3,Pound Sterling (826),1.000000000,3,Debit,85481477353006453620394,02/01/2018,GLOUCESTER CC
Gloucester City Council,23UE,Guildhall Bar & Caf�,GH005,Catering Provisions,3103,20/12/2017,19/12/2017,ICELAND,GLOUCESTER,GBR,GL1 1SA,REDACTED,556*********1155,5411,"GROCERY STORES, SUPERMARKETS",5.01,Pound Sterling (826),1.000000000,5.01,Debit,25377757354020100774964,02/01/2018,GLOUCESTER CC
Gloucester City Council,23UE,Guildhall Bar & Caf�,GH005,Catering Provisions,3103,21/12/2017,20/12/2017,WILKO RETAIL LIMIT,GLOUCESTER 14,,GL11SL,REDACTED,556*********1155,5722,HOUSEHOLD APPLIANCE STORES,1,Pound Sterling (826),1.000000000,1,Debit,85481477355006943663796,02/01/2018,GLOUCESTER CC
Gloucester City Council,23UE,Guildhall Bar & Caf�,GH005,Catering Provisions,3103,21/12/2017,20/12/2017,ICELAND,GLOUCESTER,GBR,GL1 1SA,REDACTED,556*********1155,5411,"GROCERY STORES, SUPERMARKETS",5.92,Pound Sterling (826),1.000000000,5.92,Debit,25377757355030107081734,02/01/2018,GLOUCESTER CC
Gloucester City Council,23UE,Shopmobility,SM001,Equipment and Furniture,3001,08/12/2017,07/12/2017,WWW.UKPOS.COM,INTERNET,GBR,SK6 2TD,REDACTED,556*********8997,5943,"STATIONERY, OFFICE AND SCHOOL SUPPLY STO",86.92,Pound Sterling (826),1.000000000,86.92,Debit,25425157342040109036496,02/01/2018,GLOUCESTER CC
Gloucester City Council,23UE,Eastgate Market,MK003,Building Repairs and Maintence,1001,20/12/2017,19/12/2017,SCREWFIX DIRECT,YEOVIL,,BA228RT,REDACTED,556*********8997,5211,LUMBER AND BUILDING MATERIALS STORES,26.99,Pound Sterling (826),1.000000000,26.99,Debit,85481477354006776163923,02/01/2018,GLOUCESTER CC
Gloucester City Council,23UE,TIC Trading,TI003,Supplies For Resale,3020,29/12/2017,28/12/2017,ROYAL MAIL ONLINE SHOP,INTERNET,GBR,W1T 1HQ,REDACTED,556*********8997,9402,POSTAGE STAMPS,691,Pound Sterling (826),1.000000000,691,Debit,25425157363070064455666,02/01/2018,GLOUCESTER CC
Gloucester City Council,23UE,Homelessness,HS002,B&B Payments,1303,04/12/2017,01/12/2017,TRAVELODGE GB0000,THAME,,OX9 3AT,REDACTED,556*********6959,3615,TRAVELODGE,215,Pound Sterling (826),1.000000000,215,Debit,55504437335298180583085,02/01/2018,GLOUCESTER CC
Gloucester City Council,23UE,Homelessness,HS002,B&B Payments,1303,04/12/2017,01/12/2017,TRAVELODGE GB0000,THAME,,OX9 3AT,REDACTED,556*********6959,3615,TRAVELODGE,215,Pound Sterling (826),1.000000000,215,Debit,55504437335298180569548,02/01/2018,GLOUCESTER CC
Gloucester City Council,23UE,Homelessness,HS002,B&B Payments,1303,05/12/2017,04/12/2017,TRAVELODGE GB0000,THAME,,OX9 3AT,REDACTED,556*********6959,3615,TRAVELODGE,256,Pound Sterling (826),1.000000000,256,Debit,55504437338298105068094,02/01/2018,GLOUCESTER CC
Gloucester City Council,23UE,Homelessness,HS002,B&B Payments,1303,05/12/2017,04/12/2017,TRAVELODGE GB0000,THAME,,OX9 3AT,REDACTED,556*********6959,3615,TRAVELODGE,248,Pound Sterling (826),1.000000000,248,Debit,55504437338298105053815,02/01/2018,GLOUCESTER CC
Gloucester City Council,23UE,Homelessness,HS002,B&B Payments,1303,05/12/2017,04/12/2017,TRAVELODGE GB0000,THAME,,OX9 3AT,REDACTED,556*********6959,3615,TRAVELODGE,315,Pound Sterling (826),1.000000000,315,Debit,55504437338298105034062,02/01/2018,GLOUCESTER CC
Gloucester City Council,23UE,Homelessness,HS002,B&B Payments,1303,05/12/2017,04/12/2017,TRAVELODGE GB0000,THAME,,OX9 3AT,REDACTED,556*********6959,3615,TRAVELODGE,406,Pound Sterling (826),1.000000000,406,Debit,55504437338298105012795,02/01/2018,GLOUCESTER CC
Gloucester City Council,23UE,Homelessness,HS002,B&B Payments,1303,06/12/2017,05/12/2017,TRAVELODGE GB0000,THAME,,OX9 3AT,REDACTED,556*********6959,3615,TRAVELODGE,375,Pound Sterling (826),1.000000000,375,Debit,55504437339298113601901,02/01/2018,GLOUCESTER CC
Gloucester City Council,23UE,Homelessness,HS002,B&B Payments,1303,07/12/2017,06/12/2017,TRAVELODGE GB0000,THAME,,OX9 3AT,REDACTED,556*********6959,3615,TRAVELODGE,262,Pound Sterling (826),1.000000000,262,Debit,55504437340298121780504,02/01/2018,GLOUCESTER CC
Gloucester City Council,23UE,Homelessness,HS002,B&B Payments,1303,08/12/2017,07/12/2017,TRAVELODGE GB0000,THAME,,OX9 3AT,REDACTED,556*********6959,3615,TRAVELODGE,227,Pound Sterling (826),1.000000000,227,Debit,55504437341298130124073,02/01/2018,GLOUCESTER CC
Gloucester City Council,23UE,Homelessness,HS002,B&B Payments,1303,08/12/2017,07/12/2017,TRAVELODGE GB0000,THAME,,OX9 3AT,REDACTED,556*********6959,3615,TRAVELODGE,370,Pound Sterling (826),1.000000000,370,Debit,55504437341298130133819,02/01/2018,GLOUCESTER CC
Gloucester City Council,23UE,Homelessness,HS002,B&B Payments,1303,11/12/2017,08/12/2017,TRAVELODGE GB0000,THAME,,OX9 3AT,REDACTED,556*********6959,3615,TRAVELODGE,223,Pound Sterling (826),1.000000000,223,Debit,55504437342298138827205,02/01/2018,GLOUCESTER CC
Gloucester City Council,23UE,Homelessness,HS002,B&B Payments,1303,12/12/2017,11/12/2017,TRAVELODGE GB0000,THAME,,OX9 3AT,REDACTED,556*********6959,3615,TRAVELODGE,327,Pound Sterling (826),1.000000000,327,Debit,55504437345298162236031,02/01/2018,GLOUCESTER CC
Gloucester City Council,23UE,Homelessness,HS002,B&B Payments,1303,12/12/2017,11/12/2017,TRAVELODGE GB0000,THAME,,OX9 3AT,REDACTED,556*********6959,3615,TRAVELODGE,441,Pound Sterling (826),1.000000000,441,Debit,55504437345298162137213,02/01/2018,GLOUCESTER CC
Gloucester City Council,23UE,Homelessness,HS002,B&B Payments,1303,12/12/2017,11/12/2017,TRAVELODGE GB0000,THAME,,OX9 3AT,REDACTED,556*********6959,3615,TRAVELODGE,339,Pound Sterling (826),1.000000000,339,Debit,55504437345298162163193,02/01/2018,GLOUCESTER CC
Gloucester City Council,23UE,Homelessness,HS002,B&B Payments,1303,13/12/2017,12/12/2017,TRAVELODGE GB0000,THAME,,OX9 3AT,REDACTED,556*********6959,3615,TRAVELODGE,232,Pound Sterling (826),1.000000000,232,Debit,55504437346298170611281,02/01/2018,GLOUCESTER CC
Gloucester City Council,23UE,Homelessness,HS002,B&B Payments,1303,14/12/2017,13/12/2017,TRAVELODGE GB0000,THAME,,OX9 3AT,REDACTED,556*********6959,3615,TRAVELODGE,329,Pound Sterling (826),1.000000000,329,Debit,55504437347298179004925,02/01/2018,GLOUCESTER CC
Gloucester City Council,23UE,Homelessness,HS002,B&B Payments,1303,14/12/2017,13/12/2017,TRAVELODGE GB0000,THAME,,OX9 3AT,REDACTED,556*********6959,3615,TRAVELODGE,329,Pound Sterling (826),1.000000000,329,Debit,55504437347298179037214,02/01/2018,GLOUCESTER CC
Gloucester City Council,23UE,Homelessness,HS002,B&B Payments,1303,14/12/2017,13/12/2017,TRAVELODGE GB0000,THAME,,OX9 3AT,REDACTED,556*********6959,3615,TRAVELODGE,-163,Pound Sterling (826),1.000000000,-163,Credit,55504437347295366983093,02/01/2018,GLOUCESTER CC
Gloucester City Council,23UE,Homelessness,HS002,B&B Payments,1303,15/12/2017,14/12/2017,TRAVELODGE GB0000,THAME,,OX9 3AT,REDACTED,556*********6959,3615,TRAVELODGE,98,Pound Sterling (826),1.000000000,98,Debit,55504437348298187738810,02/01/2018,GLOUCESTER CC
Gloucester City Council,23UE,Homelessness,HS002,B&B Payments,1303,15/12/2017,14/12/2017,TRAVELODGE GB0000,THAME,,OX9 3AT,REDACTED,556*********6959,3615,TRAVELODGE,445,Pound Sterling (826),1.000000000,445,Debit,55504437348298187731997,02/01/2018,GLOUCESTER CC
Gloucester City Council,23UE,Homelessness,HS002,B&B Payments,1303,19/12/2017,18/12/2017,TRAVELODGE GB0000,THAME,,OX9 3AT,REDACTED,556*********6959,3615,TRAVELODGE,85,Pound Sterling (826),1.000000000,85,Debit,55504437352298120784486,02/01/2018,GLOUCESTER CC
Gloucester City Council,23UE,Homelessness,HS002,B&B Payments,1303,21/12/2017,20/12/2017,TRAVELODGE GB0000,THAME,,OX9 3AT,REDACTED,556*********6959,3615,TRAVELODGE,64,Pound Sterling (826),1.000000000,64,Debit,55504437354298139251822,02/01/2018,GLOUCESTER CC
Gloucester City Council,23UE,Homelessness,HS002,B&B Payments,1303,21/12/2017,20/12/2017,TRAVELODGE GB0000,THAME,,OX9 3AT,REDACTED,556*********6959,3615,TRAVELODGE,64,Pound Sterling (826),1.000000000,64,Debit,55504437354298139215884,02/01/2018,GLOUCESTER CC
Gloucester City Council,23UE,Homelessness,HS002,B&B Payments,1303,22/12/2017,21/12/2017,TRAVELODGE GB0000,THAME,,OX9 3AT,REDACTED,556*********6959,3615,TRAVELODGE,52,Pound Sterling (826),1.000000000,52,Debit,55504437355298147999957,02/01/2018,GLOUCESTER CC
Gloucester City Council,23UE,Homelessness,HS002,B&B Payments,1303,22/12/2017,21/12/2017,TRAVELODGE GB0000,THAME,,OX9 3AT,REDACTED,556*********6959,3615,TRAVELODGE,368,Pound Sterling (826),1.000000000,368,Debit,55504437355298148047798,02/01/2018,GLOUCESTER CC
Gloucester City Council,23UE,Homelessness,HS002,B&B Payments,1303,26/12/2017,22/12/2017,TRAVELODGE GB0000,THAME,,OX9 3AT,REDACTED,556*********6959,3615,TRAVELODGE,260,Pound Sterling (826),1.000000000,260,Debit,55504437356298156555178,02/01/2018,GLOUCESTER CC
Gloucester City Council,23UE,Homelessness,HS002,B&B Payments,1303,28/12/2017,27/12/2017,TRAVELODGE GB0000,THAME,,OX9 3AT,REDACTED,556*********6959,3615,TRAVELODGE,385,Pound Sterling (826),1.000000000,385,Debit,55504437361298184915173,02/01/2018,GLOUCESTER CC
Gloucester City Council,23UE,Homelessness,HS002,B&B Payments,1303,29/12/2017,28/12/2017,TRAVELODGE GB0000,THAME,,OX9 3AT,REDACTED,556*********6959,3615,TRAVELODGE,268,Pound Sterling (826),1.000000000,268,Debit,55504437362298191940809,02/01/2018,GLOUCESTER CC
Gloucester City Council,23UE,Homelessness,HS002,B&B Payments,1303,29/12/2017,28/12/2017,TRAVELODGE GB0000,THAME,,OX9 3AT,REDACTED,556*********6959,3615,TRAVELODGE,-224,Pound Sterling (826),1.000000000,-224,Credit,55504437362295360109646,02/01/2018,GLOUCESTER CC
Gloucester City Council,23UE,Homelessness,HS002,B&B Payments,1303,01/01/2018,29/12/2017,TRAVELODGE GB0000,THAME,,OX9 3AT,REDACTED,556*********6959,3615,TRAVELODGE,480,Pound Sterling (826),1.000000000,480,Debit,55504437363298199253659,02/01/2018,GLOUCESTER CC
Gloucester City Council,23UE,Homelessness,HS002,B&B Payments,1303,01/01/2018,29/12/2017,TRAVELODGE GB0000,THAME,,OX9 3AT,REDACTED,556*********6959,3615,TRAVELODGE,246,Pound Sterling (826),1.000000000,246,Debit,55504437363298199256983,02/01/2018,GLOUCESTER CC
Gloucester City Council,23UE,Homelessness,HS002,B&B Payments,1303,01/01/2018,29/12/2017,TRAVELODGE GB0000,THAME,,OX9 3AT,REDACTED,556*********6959,3615,TRAVELODGE,387,Pound Sterling (826),1.000000000,387,Debit,55504437363298199368309,02/01/2018,GLOUCESTER CC
Gloucester City Council,23UE,Economic Development,ED001,Public Transport - Staff,2402,05/12/2017,04/12/2017,Trainline,London,GBR,1445,REDACTED,556*********3822,4112,PASSENGER RAILWAYS,42.13,Pound Sterling (826),1.000000000,42.13,Debit,85130087338748097209132,02/01/2018,GLOUCESTER CC
Gloucester City Council,23UE,City Centre Improvement,NE001,Public Transport - Staff,2402,05/12/2017,04/12/2017,Trainline,London,GBR,1445,REDACTED,556*********3822,4112,PASSENGER RAILWAYS,83.95,Pound Sterling (826),1.000000000,83.95,Debit,85130087338748097166647,02/01/2018,GLOUCESTER CC
Gloucester City Council,23UE,Economic Development,ED001,Public Transport - Staff,2402,13/12/2017,12/12/2017,Trainline,London,GBR,1445,REDACTED,556*********3822,4112,PASSENGER RAILWAYS,42.13,Pound Sterling (826),1.000000000,42.13,Debit,85130087346749442476285,02/01/2018,GLOUCESTER CC
Gloucester City Council,23UE,Blackfriars ,GH010,Equipment and Furniture,3001,04/12/2017,02/12/2017,Amazon UK Marketplace,800-279-6620,LUX,L2338,REDACTED,556*********8256,5942,BOOK STORES,5.86,Pound Sterling (826),1.000000000,5.86,Debit,55204727336200693392653,02/01/2018,GLOUCESTER CC
Gloucester City Council,23UE,Guildhall Events,GH002,Professional Advice/Consultants fees,3952,05/12/2017,04/12/2017,Hotel on Booking.com,Amsterdam,NLD,1017 SG,REDACTED,556*********8256,7011,"LODGING, HOTELS, MOTELS, RESORTS",198,Pound Sterling (826),1.000000000,198,Debit,15265677338606567211743,02/01/2018,GLOUCESTER CC
Gloucester City Council,23UE,Guildhall Events,GH002,Professional Advice/Consultants fees,3952,06/12/2017,05/12/2017,MIPERMIT,INTERNET,GBR,SN15 5FD,REDACTED,556*********8256,7523,AUTOMOBILE PARKING LOTS AND GARAGES,30,Pound Sterling (826),1.000000000,30,Debit,25425157340020105957152,02/01/2018,GLOUCESTER CC
Gloucester City Council,23UE,Guildhall Events,GH002,Professional Advice/Consultants fees,3952,07/12/2017,06/12/2017,GLO'SHIRE CC WEB PCN,UXBRIDGE,GBR,UB8 2XW,REDACTED,556*********8256,7523,AUTOMOBILE PARKING LOTS AND GARAGES,35,Pound Sterling (826),1.000000000,35,Debit,25377757341030135466623,02/01/2018,GLOUCESTER CC
Gloucester City Council,23UE,Guildhall Events,GH002,Professional Advice/Consultants fees,3952,08/12/2017,07/12/2017,MIPERMIT,INTERNET,GBR,SN15 5FD,REDACTED,556*********8256,7523,AUTOMOBILE PARKING LOTS AND GARAGES,20,Pound Sterling (826),1.000000000,20,Debit,25425157342040109689583,02/01/2018,GLOUCESTER CC
Gloucester City Council,23UE,Guildhall Bar & Caf�,GH005,Supplies For Resale,3020,12/12/2017,11/12/2017,B&M RETAIL LTD,HS GLOUCESTER,,GL12DH,REDACTED,556*********8256,5310,DISCOUNT STORES,8.74,Pound Sterling (826),1.000000000,8.74,Debit,85481477346004865140440,02/01/2018,GLOUCESTER CC
Gloucester City Council,23UE,Guildhall Bar & Caf�,GH005,Supplies For Resale,3020,12/12/2017,11/12/2017,B&M RETAIL LTD,HS GLOUCESTER,,GL12DH,REDACTED,556*********8256,5310,DISCOUNT STORES,3.58,Pound Sterling (826),1.000000000,3.58,Debit,85481477346004865140689,02/01/2018,GLOUCESTER CC
Gloucester City Council,23UE,Guildhall Cinema,GH003,Advertising & Publicity,3404,13/12/2017,12/12/2017,WWW.INSTANTPRINT.C,01709 382202,,S63 5DR,REDACTED,556*********8256,7338,QUICK-COPY AND REPRODUCTION SERVICES,23.99,Pound Sterling (826),1.000000000,23.99,Debit,85481477347004951993578,02/01/2018,GLOUCESTER CC
Gloucester City Council,23UE,Guildhall Bar & Caf�,GH005,Supplies For Resale,3020,19/12/2017,18/12/2017,MARKS&SPENCER PLC,GLOUCESTER,GBR,GL1 1PH,REDACTED,556*********8256,5411,"GROCERY STORES, SUPERMARKETS",29.35,Pound Sterling (826),1.000000000,29.35,Debit,45377757353010392600620,02/01/2018,GLOUCESTER CC
Gloucester City Council,23UE,Guildhall Events,GH002,Advertising & Publicity,3404,01/01/2018,31/12/2017,FACEBK XVN52F2MR2,fb.me/ads,IRL,2,REDACTED,556*********8256,7311,ADVERTISING SERVICES,10.44,Pound Sterling (826),1.000000000,10.44,Debit,15265677365000146953635,02/01/2018,GLOUCESTER CC
Gloucester City Council,23UE,Blackfriars ,GH010,Advertising & Publicity,3404,01/01/2018,31/12/2017,FACEBK *L6JTSEAFX2,fb.me/ads,IRL,UNKNOWN,REDACTED,556*********8256,7311,ADVERTISING SERVICES,6.47,Pound Sterling (826),1.000000000,6.47,Debit,55204727365200333794007,02/01/2018,GLOUCESTER CC
Gloucester City Council,23UE,Business Transformation,BI006,"ICT Software, Licences & Support fees",3521,04/12/2017,01/12/2017,avangate*extenua.com,AMSTELVEEN,NLD,1181 LD,REDACTED,556*********3063,5734,COMPUTER SOFTWARE STORES,148.56,Pound Sterling (826),1.000000000,148.56,Debit,85449477335747774739108,02/01/2018,GLOUCESTER CC
Gloucester City Council,23UE,Civica Admin Charges,BI002,Professional Advice/Consultants fees,3952,04/12/2017,01/12/2017,HMCOURTS-SERVICE.G,01452420100,,GL12ZG,REDACTED,556*********3063,9222,FINES,192,Pound Sterling (826),1.000000000,192,Debit,85481477336002219753514,02/01/2018,GLOUCESTER CC
Gloucester City Council,23UE,Business Transformation,BI006,General Supplies/Materials,3025,04/12/2017,01/12/2017,ELECTRO SUPPLIES.C,HARLOW,,CM20 2FD,REDACTED,556*********3063,5732,ELECTRONIC SALES,66.94,Pound Sterling (826),1.000000000,66.94,Debit,55504437335174179866130,02/01/2018,GLOUCESTER CC
Gloucester City Council,23UE,Off Street Car Parks,PA001,Equipment and Furniture,3001,08/12/2017,07/12/2017,SAFE.CO.UK,01772 730320,,PR22NS,REDACTED,556*********3063,5943,"STATIONERY, OFFICE AND SCHOOL SUPPLY STO",68.4,Pound Sterling (826),1.000000000,68.4,Debit,85481477342003754733632,02/01/2018,GLOUCESTER CC
Gloucester City Council,23UE,Off Street Car Parks,PA001,Building Repairs and Maintence,1001,19/12/2017,18/12/2017,WWW.APTCLEANINGSUPPLIE,TREDEGAR,,NP22 4EF,REDACTED,556*********3063,5169,CHEMICALS AND ALLIED PRODUCTS NOT ELSEWH,84.42,Pound Sterling (826),1.000000000,84.42,Debit,55541967353465000513802,02/01/2018,GLOUCESTER CC
Gloucester City Council,23UE,Vehicles,CT002,Hire of Vehicles/Plant,2301,19/12/2017,18/12/2017,Enterprise Rent-A-Car,01452 419222,,GL25HY,REDACTED,556*********3063,3405,ENTERPRISE RENT-A-CAR,621.22,Pound Sterling (826),1.000000000,621.22,Debit,85481477353006438354028,02/01/2018,GLOUCESTER CC
Gloucester City Council,23UE,Treasury Management,FS005,Professional Advice/Consultants fees,3952,19/12/2017,12/12/2017,LON STCK EXC/NET,LONDON EC2N,,EC4M 7LS,REDACTED,556*********3063,7399,BUSINESS SERVICES NOT ELSEWHERE CLASSIFIED,138,Pound Sterling (826),1.000000000,138,Debit,55504437352086204220935,02/01/2018,GLOUCESTER CC
Gloucester City Council,23UE,Vehicles,CT002,Hire of Vehicles/Plant,2301,21/12/2017,20/12/2017,Enterprise Rent-A-Car,01452 419222,,GL25HY,REDACTED,556*********3063,3405,ENTERPRISE RENT-A-CAR,106.26,Pound Sterling (826),1.000000000,106.26,Debit,85481477354006928877180,02/01/2018,GLOUCESTER CC
Gloucester City Council,23UE,Vehicles,CT002,Hire of Vehicles/Plant,2301,21/12/2017,20/12/2017,Enterprise Rent-A-Car,01452 419222,,GL25HY,REDACTED,556*********3063,3405,ENTERPRISE RENT-A-CAR,136.62,Pound Sterling (826),1.000000000,136.62,Debit,85481477354006928877198,02/01/2018,GLOUCESTER CC
Gloucester City Council,23UE,Business Transformation,BI006,ICT New Hardware,3523,22/12/2017,21/12/2017,APPLE ONLINE STORE GBP,0845-600-1683,IRL,UNKNOWN,REDACTED,556*********3063,5732,ELECTRONIC SALES,1017,Pound Sterling (826),1.000000000,1017,Debit,55204727355200725207867,02/01/2018,GLOUCESTER CC
Gloucester City Council,23UE,Financial Services,FS004,External Training Course Fees,0550,22/12/2017,21/12/2017,WWW.CIPFA.ORG.UK,LONDON WC2N,,E1 8AN,REDACTED,556*********3063,8699,MEMBERSHIP ORGANIZATIONS NOT ELSEWHERE CLASSIFIED,151,Pound Sterling (826),1.000000000,151,Debit,55541967356338000004709,02/01/2018,GLOUCESTER CC
Gloucester City Council,23UE,Civica Admin Charges,BI002,Professional Advice/Consultants fees,3952,22/12/2017,21/12/2017,HMCOURTS-SERVICE.G,01452420100,,GL12ZG,REDACTED,556*********3063,9222,FINES,4170,Pound Sterling (826),1.000000000,4170,Debit,85481477356007225859283,02/01/2018,GLOUCESTER CC
Gloucester City Council,23UE,Business Transformation,BI006,"ICT Software, Licences & Support fees",3521,22/12/2017,21/12/2017,WWW.JA.NET,012358222311,,OX11 0SG,REDACTED,556*********3063,8699,MEMBERSHIP ORGANIZATIONS NOT ELSEWHERE CLASSIFIED,192,Pound Sterling (826),1.000000000,192,Debit,55504437355295322727021,02/01/2018,GLOUCESTER CC
